fUSD/lending_fUSD_20250213
["ID","MTS","AMOUNT","RATE_DAILY","PERIOD"]
[352951161,1739458258439,-3551.29,0.00014198,2]
[352951162,1739458258449,-1397.64,0.00014198,2]
[352951163,1739458258458,-565.39511532,0.00014198,2]
[352951164,1739458258467,-838.97,0.00014198,2]
[352951165,1739458258477,-638.07,0.00014198,2]
[352951166,1739458258486,-500.0,0.00014198,2]
[352951167,1739458258497,-2251.58,0.00014198,2]
[352951168,1739458258508,-2166.76,0.00014198,2]
[352951169,1739458258517,-3468.39,0.00014198,2]
[352951170,1739458258526,-500.0,0.00014198,2]
[352951171,1739458258535,-1093.68,0.00014198,2]
[352951172,1739458258545,-1290.01,0.00014198,2]
[352951173,1739458258554,-4625.48,0.00014198,2]
[352951174,1739458258563,-1196.15,0.00014198,2]
[352951175,1739458258573,-1196.15,0.00014198,2]
[352951176,1739458258583,-1196.15,0.00014198,2]
[352951177,1739458258593,-1196.15,0.00014198,2]
[352951178,1739458258603,-2361.04,0.00014198,2]
[352951179,1739458258612,-500.0,0.00014198,2]
[352951180,1739458258621,-500.0,0.00014198,2]
[352951181,1739458258631,-500.0,0.00014198,2]
[352951182,1739458258641,-2125.53,0.00014198,2]
[352951183,1739458258650,-500.0,0.00014198,2]
[352951184,1739458258660,-500.0,0.00014198,2]
[352951185,1739458258669,-500.0,0.00014198,2]
[352951186,1739458258679,-500.0,0.00014198,2]
[352951187,1739458258688,-500.0,0.00014198,2]
[352951188,1739458258698,-500.0,0.00014198,2]
[352951189,1739458258709,-1974.72,0.00014198,2]
[352951190,1739458258719,-2552.61,0.00014198,2]
[352951191,1739458258728,-500.0,0.00014198,2]
[352951192,1739458258737,-500.0,0.00014198,2]
[352951193,1739458258747,-1553.46,0.00014198,2]
[352951194,1739458258756,-1658.55,0.00014198,2]
[352951195,1739458258766,-721.74,0.00014198,2]
[352951196,1739458258775,-1429.17,0.00014198,2]
[352951197,1739458258785,-500.0,0.00014198,2]
[352951198,1739458258795,-1171.55,0.00014198,2]
[352951199,1739458258804,-500.0,0.00014198,2]
[352951200,1739458258821,-2000.0,0.00014199,2]
[352951201,1739458258842,-681.3,0.00014199,2]
[352951202,1739458258861,-801.22,0.00014199,2]
[352951203,1739458258882,-500.0,0.00014199,2]
[352951204,1739458258898,-504.66,0.00014199,2]
[352951205,1739458258918,-1045.27,0.00014199,2]
[352951206,1739458258939,-500.0,0.00014199,2]
[352951207,1739458258959,-696.52,0.00014199,2]
[352951208,1739458258976,-569.76,0.00014199,2]
[352951209,1739458258996,-933.0,0.00014199,2]
[352951210,1739458259016,-759.24,0.00014199,2]
[352951211,1739458259036,-609.61,0.00014199,2]
[352951212,1739458259050,-500.0,0.00014199,2]
[352951213,1739458259070,-500.0,0.00014199,2]
[352951214,1739458259082,-891.36,0.00014199,2]
[352951215,1739458259102,-617.13,0.00014199,2]
[352951216,1739458259115,-500.0,0.00014199,2]
[352951217,1739458259131,-500.0,0.00014199,2]
[352951218,1739458259150,-589.86,0.00014199,2]
[352951219,1739458259166,-500.0,0.00014199,2]
[352951220,1739458259181,-864.25,0.00014199,2]
[352951221,1739458259197,-500.0,0.00014199,2]
[352951222,1739458259213,-500.0,0.00014199,2]
[352951223,1739458259230,-500.0,0.00014199,2]
[352951224,1739458259246,-500.0,0.00014199,2]
[352951225,1739458259261,-500.0,0.00014199,2]
[352951226,1739458259277,-911.71,0.00014199,2]
[352951227,1739458259292,-500.0,0.00014199,2]
[352951228,1739458259308,-503.43760617,0.00014199,2]
[352951229,1739458259323,-829.79,0.00014199,2]
[352951230,1739458259340,-500.0,0.00014199,2]
[352951231,1739458259358,-500.0,0.00014199,2]
[352951232,1739458259373,-500.0,0.00014199,2]
[352951233,1739458259392,-500.0,0.00014199,2]
[352951234,1739458259406,-500.0,0.00014199,2]
[352951235,1739458259423,-500.0,0.00014199,2]
[352951236,1739458259440,-500.0,0.00014199,2]
[352951237,1739458259457,-500.0,0.00014199,2]
[352951238,1739458259472,-500.0,0.00014199,2]
[352951239,1739458259489,-500.0,0.00014199,2]
[352951240,1739458259505,-500.0,0.00014199,2]
[352951241,1739458259519,-500.0,0.00014199,2]
[352951242,1739458259535,-500.0,0.00014199,2]
[352951243,1739458259551,-500.0,0.00014199,2]
[352951244,1739458259565,-500.0,0.00014199,2]
[352951245,1739458259580,-500.0,0.00014199,2]
[352951246,1739458259595,-500.0,0.00014199,2]
[352951247,1739458259611,-500.0,0.00014199,2]
[352951248,1739458259627,-793.25,0.00014199,2]
[352951249,1739458259643,-953.3,0.00014199,2]
[352951250,1739458259659,-818.42,0.00014199,2]
[352951251,1739458259676,-500.0,0.00014199,2]
[352951252,1739458259692,-500.0,0.00014199,2]
[352951253,1739458259707,-792.61,0.00014199,2]
[352951254,1739458259724,-500.0,0.00014199,2]
[352951255,1739458259739,-500.0,0.00014199,2]
[352951256,1739458259755,-991.51,0.00014199,2]
[352951257,1739458259771,-500.0,0.00014199,2]
[352951258,1739458259787,-500.0,0.00014199,2]
[352951259,1739458259803,-500.0,0.00014199,2]
[352951260,1739458259819,-500.0,0.00014199,2]
[352951261,1739458259835,-500.0,0.00014199,2]
[352951262,1739458259854,-500.0,0.00014199,2]
[352951263,1739458259871,-500.0,0.00014199,2]
[352951264,1739458259887,-500.0,0.00014199,2]
[352951265,1739458259907,-290.33994083,0.00014199,2]
[352951266,1739458259923,-500.0,0.00014199,2]
[352951267,1739458259939,-500.0,0.00014199,2]
[352951268,1739458259955,-500.0,0.00014199,2]
[352951269,1739458259971,-500.0,0.00014199,2]
[352951270,1739458259988,-500.0,0.00014199,2]
[352951271,1739458260004,-500.0,0.00014199,2]
[352951272,1739458260020,-500.0,0.00014199,2]
[352951273,1739458260036,-500.0,0.00014199,2]
[352951274,1739458260052,-500.0,0.00014199,2]
[352951275,1739458260068,-500.0,0.00014199,2]
[352951276,1739458260083,-500.0,0.00014199,2]
[352951277,1739458260102,-500.0,0.00014199,2]
[352951278,1739458260117,-500.0,0.00014199,2]
[352951279,1739458260133,-918.25,0.00014199,2]
[352951280,1739458260149,-713.11,0.00014199,2]
[352951281,1739458260165,-500.0,0.00014199,2]
[352951282,1739458260181,-500.0,0.00014199,2]
[352951283,1739458260197,-500.0,0.00014199,2]
[352951284,1739458260214,-500.0,0.00014199,2]
[352951285,1739458260231,-780.4,0.00014199,2]
[352951286,1739458260243,-500.0,0.00014199,2]
[352951287,1739458260254,-500.0,0.00014199,2]
[352951288,1739458260478,-500.0,0.00014199,2]
[352951289,1739458260513,-500.0,0.00014199,2]
[352951290,1739458260523,-500.0,0.00014199,2]
[352951291,1739458260532,-857.48,0.00014199,2]
[352951292,1739458260542,-500.0,0.00014199,2]
[352951293,1739458260551,-500.0,0.00014199,2]
[352951294,1739458260560,-500.0,0.00014199,2]
[352951295,1739458260570,-856.56,0.00014199,2]
[352951296,1739458260579,-500.0,0.00014199,2]
[352951297,1739458260589,-500.0,0.00014199,2]
[352951298,1739458260604,-747.74,0.00014199,2]
[352951299,1739458260614,-1000.02,0.00014199,2]
[352951300,1739458260623,-500.0,0.00014199,2]
[352951301,1739458260633,-500.0,0.00014199,2]
[352951302,1739458260643,-500.0,0.00014199,2]
[352951303,1739458260653,-500.0,0.00014199,2]
[352951304,1739458260663,-500.0,0.00014199,2]
[352951305,1739458260673,-543.73,0.00014199,2]
[352951306,1739458260683,-655.43,0.00014199,2]
[352951307,1739458260693,-500.0,0.00014199,2]
[352951308,1739458260702,-500.0,0.00014199,2]
[352951309,1739458260712,-828.61,0.00014199,2]
[352951310,1739458260721,-500.0,0.00014199,2]
[352951311,1739458260731,-500.0,0.00014199,2]
[352951312,1739458260741,-1140.76,0.00014199,2]
[352951313,1739458260751,-504.57956533,0.00014199,2]
[352951314,1739458260760,-500.0,0.00014199,2]
[352951315,1739458260771,-520.8397869,0.00014199,2]
[352951316,1739458260781,-500.0,0.00014199,2]
[352951317,1739458260791,-500.0,0.00014199,2]
[352951318,1739458260800,-500.0,0.00014199,2]
[352951319,1739458260811,-723.42,0.00014199,2]
[352951320,1739458260820,-1100.91,0.00014199,2]
[352951321,1739458260830,-504.23670663,0.00014199,2]
[352951322,1739458260840,-500.0,0.00014199,2]
[352951323,1739458260853,-500.0,0.00014199,2]
[352951324,1739458260863,-500.0,0.00014199,2]
[352951325,1739458260872,-500.0,0.00014199,2]
[352951326,1739458260882,-500.0,0.00014199,2]
[352951327,1739458260892,-500.0,0.00014199,2]
[352951328,1739458260904,-500.0,0.00014199,2]
[352951329,1739458260913,-500.0,0.00014199,2]
[352951330,1739458260922,-500.0,0.00014199,2]
[352951331,1739458260932,-500.0,0.00014199,2]
[352951332,1739458260942,-500.0,0.00014199,2]
[352951333,1739458260952,-500.0,0.00014199,2]
[352951334,1739458260961,-500.0,0.00014199,2]
[352951335,1739458260971,-500.0,0.00014199,2]
[352951336,1739458260981,-500.0,0.00014199,2]
[352951337,1739458260991,-500.0,0.00014199,2]
[352951338,1739458261000,-500.0,0.00014199,2]
[352951339,1739458261010,-500.0,0.00014199,2]
[352951340,1739458261019,-500.0,0.00014199,2]
[352951341,1739458261029,-500.0,0.00014199,2]
[352951342,1739458261038,-554.3,0.00014199,2]
[352951343,1739458261048,-1196.15,0.00014199,2]
[352951344,1739458261058,-1196.15,0.00014199,2]
[352951345,1739458261067,-1196.15,0.00014199,2]
[352951346,1739458261077,-1196.15,0.00014199,2]
[352951347,1739458261087,-1196.15,0.00014199,2]
[352951348,1739458261100,-1196.15,0.00014199,2]
[352951349,1739458261109,-1196.15,0.00014199,2]
[352951350,1739458261119,-1196.15,0.00014199,2]
[352951351,1739458261128,-1196.15,0.00014199,2]
[352951352,1739458261138,-1196.15,0.00014199,2]
[352951353,1739458261147,-1196.15,0.00014199,2]
[352951354,1739458261157,-1196.15,0.00014199,2]
[352951355,1739458261167,-1196.15,0.00014199,2]
[352951356,1739458261176,-1196.15,0.00014199,2]
[352951357,1739458261185,-1196.15,0.00014199,2]
[352951358,1739458261195,-1196.15,0.00014199,2]
[352951359,1739458261204,-1196.15,0.00014199,2]
[352951360,1739458261214,-1196.15,0.00014199,2]
[352951361,1739458261223,-1196.15,0.00014199,2]
[352951362,1739458261234,-1196.27,0.00014199,2]
[352951363,1739458261243,-500.0,0.00014199,2]
[352951364,1739458261253,-500.0,0.00014199,2]
[352951365,1739458261263,-500.0,0.00014199,2]
[352951366,1739458261272,-500.0,0.00014199,2]
[352951367,1739458261282,-500.0,0.00014199,2]
[352951368,1739458261291,-329.9,0.00014199,2]
[352951369,1739458261301,-4405.97664607,0.000142,2]
[352951370,1739458261311,-741546.83055563,0.000142,3]
[352951371,1739458261321,-935705.69690694,0.000142,5]
[352951372,1739458262031,-195247.590688,0.000142,5]
[352951373,1739458262042,-665.68976438,0.000142,5]
[352951374,1739458262054,-771.32533088,0.000142,5]
[352951375,1739458262307,-500.0,0.00013999,2]
[352951376,1739458262317,-500.0,0.00014081,2]
[352951377,1739458262327,-500.0,0.00014164,2]
[352951378,1739458262337,-500.0,0.00014198,2]
[352951379,1739458262351,-96765.3020435,0.000142,5]
[352951380,1739458262363,-320.58088668,0.000142,5]
[352951381,1739458262375,-38034.95164397,0.000142,5]
[352951382,1739458262395,-5138.58198153,0.000142,5]
[352951383,1739458262406,-1470.8855,0.000142,5]
[352951384,1739458262420,-529.62085251,0.000142,5]
[352951385,1739458262431,-23457.35604648,0.000142,5]
[352951386,1739458262442,-2844.78400016,0.000142,5]
[352951387,1739458262453,-2749.61932361,0.000142,5]
[352951388,1739458262464,-3771.173325,0.000142,5]
[352951389,1739458262669,-624.22275199,0.000142,5]
[352951390,1739458262681,-14372.74776098,0.000142,5]
[352951391,1739458262693,-17476.08560783,0.000142,5]
[352951392,1739458263160,-373.47350791,0.00013999,2]
[352951393,1739458263172,-126.52649209,0.00013999,2]
[352951394,1739458263181,-500.0,0.00013999,2]
[352951395,1739458263190,-31.70765273,0.00014032,2]
[352951396,1739458263201,-468.29234727,0.00014032,2]
[352951397,1739458263211,-500.0,0.00014081,2]
[352951398,1739458263221,-500.0,0.00014081,2]
[352951399,1739458263230,-1813.01,0.000141,2]
[352951400,1739458263240,-500.0,0.00014114,2]
[352951401,1739458263251,-500.0,0.00014164,2]
[352951402,1739458263261,-500.0,0.00014164,2]
[352951403,1739458263270,-1813.01,0.00014182,2]
[352951404,1739458263280,-500.0,0.00014196,2]
[352951405,1739458263289,-500.0,0.00014198,2]
[352951406,1739458263299,-65694.11258528,0.000142,5]
[352951407,1739458263311,-5379.18095636,0.000142,5]
[352951408,1739458263322,-11758.94617907,0.000142,5]
[352951409,1739458263333,-5049.00675775,0.000142,5]
[352951410,1739458263685,155.2481,8.699e-05,2]
[352951411,1739458264287,350.56,0.00013306,2]
[352951412,1739458264674,266.6488,8.699e-05,2]
[352951413,1739458265771,5986.4694,8.699e-05,2]
[352951414,1739458266499,12041.97348,0.00013,2]
[352951415,1739458274005,989.898,8.256e-05,2]
[352951416,1739458274111,6619.9356,8.699e-05,2]
[352951417,1739458276892,2390.1664,8.836e-05,2]
[352951418,1739458276920,10000.0,8.836e-05,2]
[352951419,1739458276943,10000.0,8.836e-05,2]
[352951420,1739458276972,10000.0,8.836e-05,2]
[352951421,1739458276997,3876.0856,8.836e-05,2]
[352951422,1739458287375,363.57,0.00012,2]
[352951423,1739458304179,5760.3444,0.00012,2]
[352951424,1739458304202,7324.12212,0.00012,2]
[352951425,1739458316093,2640.2917,8.699e-05,2]
[352951426,1739458319969,1751.8891,8.699e-05,2]
[352951427,1739458336782,1692.73,0.00011309,2]
[352951428,1739458347927,5645.2449,8.836e-05,2]
[352951429,1739458363170,181.0012,8.836e-05,2]
[352951430,1739458378376,298.3528,8.836e-05,2]
[352951431,1739458394009,19778.4993,8.836e-05,2]
[352951432,1739458399647,70125.7758,8.836e-05,2]
[352951433,1739458406278,1684.1805,8.699e-05,2]
[352951434,1739458444478,9143.422,8.836e-05,2]
[352951435,1739458535889,2562.332,8.836e-05,2]
[352951436,1739458547697,215.0377,8.836e-05,2]
[352951437,1739458581414,7083.8561,8.836e-05,2]
[352951438,1739458607408,50726.15,8.836e-05,2]
[352951439,1739458647381,379.738,8.836e-05,2]
[352951440,1739458670650,221.41,0.00010137,2]
[352951441,1739458670781,2513.7282,8.836e-05,2]
[352951442,1739458719983,-5100.0,0.0001419,17]
[352951443,1739458720008,-5100.0,0.0001419,18]
[352951444,1739458720033,-5100.0,0.0001419,19]
[352951445,1739458720058,-5100.0,0.0001419,20]
[352951446,1739458720081,-5100.0,0.0001419,22]
[352951447,1739458720105,-5100.0,0.0001419,23]
[352951448,1739458720130,-5100.0,0.0001419,24]
[352951449,1739458803326,5011.93124085,0.00010541,2]
[352951450,1739458834777,500.0,0.00010468,2]
[352951451,1739458848673,800.0,0.00010468,2]
[352951452,1739458849797,800.0,0.00011838,2]
[352951453,1739458859250,700.0,0.00010468,2]
[352951454,1739458861285,700.0,0.00011838,2]
[352951455,1739458871557,1251.71128731,0.00020854,120]
[352951456,1739458922257,24656.2939,8.836e-05,2]
[352951457,1739458976268,4977.3557,8.836e-05,2]
[352951458,1739458997384,800.0,0.00010468,2]
[352951459,1739458999048,800.0,0.00011838,2]
[352951460,1739459008490,700.0,0.00011564,2]
[352951461,1739459033013,1125.673,8.836e-05,2]
[352951462,1739459042736,500.0,0.00010468,2]
[352951463,1739459044326,500.0,0.00011838,2]
[352951464,1739459055677,3882.9373,8.699e-05,2]
[352951465,1739459058451,6619.9356,8.699e-05,2]
[352951466,1739459060190,32562.0985,8.836e-05,2]
[352951467,1739459077110,2234.1254,8.836e-05,2]
[352951468,1739459088256,311.0,0.00012427,50]
[352951469,1739459089322,1004.6704,8.836e-05,2]
[352951470,1739459146765,222.2334,8.699e-05,2]
[352951471,1739459152960,312.7495,8.699e-05,2]
[352951472,1739459158133,2957.106,8.836e-05,2]
[352951473,1739459169404,436.4077,8.699e-05,2]
[352951474,1739459177326,1806.2382,8.836e-05,2]
[352951475,1739459182825,9285.054,8.836e-05,2]
[352951476,1739459231141,-278.79741596,0.00012327,2]
[352951477,1739459231164,-18.0453291,0.00012364,7]
[352951478,1739459231194,-8745.15366859,0.00012364,7]
[352951479,1739459232283,28786.7602,8.699e-05,2]
[352951480,1739459244098,-5337.83873869,0.00012364,7]
[352951481,1739459245098,-1199.88347768,0.00012364,7]
[352951482,1739459256116,517.3708,8.699e-05,2]
[352951484,1739459264299,157.9616,8.699e-05,2]
[352951486,1739459340232,700.0,0.00011564,2]
[352951488,1739459340790,5679.6641,8.836e-05,2]
[352951489,1739459345079,-2931.66187274,0.00012364,7]
[352951490,1739459345100,-150.0,0.00012364,2]
[352951491,1739459345121,-1500.0,0.00012364,2]
[352951492,1739459345142,-423.51799926,0.00012397,2]
[352951493,1739459349254,-703.03200074,0.00012397,2]
[352951494,1739459349277,-1109.41,0.00012419,2]
[352951495,1739459349300,-1000.0,0.00012428,2]
[352951496,1739459349322,-2000.0,0.00012434,2]
[352951497,1739459349345,-23900.0,0.0001248,2]
[352951498,1739459349367,-717.3,0.00012487,2]
[352951499,1739459349388,-219.53,0.00012529,2]
[352951500,1739459349412,-504.46,0.00012594,2]
[352951501,1739459349434,-250.0,0.00012701,2]
[352951502,1739459349455,-10664.22,0.00012704,2]
[352951503,1739459349478,-252.00575294,0.00012773,2]
[352951504,1739459349500,-150.0,0.00012773,2]
[352951505,1739459349521,-150.0,0.00012773,2]
[352951506,1739459349542,-1401.8,0.00012796,2]
[352951507,1739459349568,-173.99,0.00012808,2]
[352951508,1739459349591,-700.0,0.00012934,2]
[352951509,1739459349617,-550.0,0.00013,2]
[352951510,1739459349639,-619.0,0.000131,2]
[352951511,1739459349661,-164.24,0.00013149,2]
[352951512,1739459349684,-164.24,0.00013156,2]
[352951513,1739459349704,-150.99,0.00013163,2]
[352951514,1739459349727,-164.24,0.00013163,2]
[352951515,1739459349749,-164.24,0.00013171,2]
[352951516,1739459349772,-164.24,0.00013178,2]
[352951517,1739459349793,-150.0,0.00013185,2]
[352951518,1739459349819,-164.24,0.00013185,2]
[352951519,1739459349842,-200.0,0.00013185,2]
[352951520,1739459349864,-164.24,0.00013193,2]
[352951521,1739459349887,-164.24,0.000132,2]
[352951522,1739459349910,-164.24,0.00013207,2]
[352951523,1739459349933,-164.24,0.00013215,2]
[352951524,1739459349954,-202.0,0.0001327,2]
[352951525,1739459349976,-21886.0,0.0001332,2]
[352951526,1739459350000,-986.09,0.00013425,2]
[352951527,1739459350023,-150.0,0.00013425,2]
[352951528,1739459350048,-150.0,0.00013425,2]
[352951529,1739459350069,-150.22,0.00013425,2]
[352951530,1739459350090,-438.93,0.00013425,2]
[352951531,1739459350112,-304.23,0.00013425,2]
[352951532,1739459350135,-986.09,0.00013425,2]
[352951533,1739459350155,-150.0,0.00013425,2]
[352951534,1739459350177,-150.0,0.00013425,2]
[352951535,1739459350198,-150.0,0.00013425,2]
[352951536,1739459350225,-438.93,0.00013425,2]
[352951537,1739459350249,-150.0,0.00013425,2]
[352951538,1739459350271,-150.0,0.00013425,2]
[352951539,1739459350292,-150.0,0.00013425,2]
[352951540,1739459350316,-986.09,0.00013425,2]
[352951541,1739459350338,-1692.73,0.00013573,2]
[352951542,1739459350360,-250.0,0.00013577,2]
[352951543,1739459350404,-202.0,0.0001359,2]
[352951544,1739459350447,-150.0,0.000136,2]
[352951545,1739459350488,-3005.36,0.00013699,2]
[352951546,1739459350528,-862.75677384,0.00013898,2]
[352951547,1739459350553,-4629.53578606,0.00013898,2]
[352951548,1739459350577,-328.41312959,0.00013898,2]
[352951549,1739459350601,-202.0,0.000139,2]
[352951550,1739459350625,-862.75677376,0.0001392,2]
[352951551,1739459350648,-4629.53578602,0.0001392,2]
[352951552,1739459350670,-1009.12802596,0.00013933,2]
[352951553,1739459350693,-862.75677376,0.00013943,2]
[352951554,1739459350717,-4629.53578602,0.00013943,2]
[352951555,1739459350740,-1009.12802594,0.00013957,2]
[352951556,1739459350764,-862.75677376,0.00013965,2]
[352951557,1739459350787,-4629.53578602,0.00013965,2]
[352951558,1739459350812,-1000.0,0.00013981,2]
[352951559,1739459350834,-1009.12802594,0.00013981,2]
[352951560,1739459350856,-862.75677376,0.00013988,2]
[352951561,1739459350879,-4629.53578602,0.00013988,2]
[352951562,1739459350901,-2936.59,0.00013997,2]
[352951563,1739459350924,-2705.04,0.00013997,2]
[352951564,1739459350948,-1231.39,0.00013997,2]
[352951565,1739459350970,-2094.48,0.00013997,2]
[352951566,1739459350993,-4576.05,0.00013997,2]
[352951567,1739459351015,-3837.12,0.00013997,2]
[352951568,1739459351037,-500.0,0.00013997,2]
[352951569,1739459351061,-3819.52,0.00013997,2]
[352951570,1739459351083,-3784.52,0.00013997,2]
[352951571,1739459351105,-2327.63,0.00013997,2]
[352951572,1739459351126,-500.0,0.00013998,2]
[352951573,1739459351147,-1468.91,0.00013998,2]
[352951574,1739459351171,-500.0,0.00013998,2]
[352951575,1739459351192,-558.59,0.00013998,2]
[352951576,1739459351215,-820.11,0.00013998,2]
[352951577,1739459351239,-554.84,0.00013998,2]
[352951578,1739459351265,-500.0,0.00013998,2]
[352951579,1739459351287,-1943.17,0.00013998,2]
[352951580,1739459351312,-1061.52,0.00013998,2]
[352951581,1739459351334,-1636.79,0.00013998,2]
[352951582,1739459351356,-500.0,0.00013998,2]
[352951583,1739459351378,-626.87,0.00013998,2]
[352951584,1739459351401,-500.0,0.00013998,2]
[352951585,1739459351422,-500.0,0.00013998,2]
[352951586,1739459351444,-719.49,0.00013998,2]
[352951587,1739459351466,-629.57,0.00013998,2]
[352951588,1739459351488,-643.31,0.00013998,2]
[352951589,1739459351510,-567.17919119,0.00013998,2]
[352951590,1739459351531,-500.0,0.00013998,2]
[352951591,1739459351554,-500.0,0.00013998,2]
[352951592,1739459351576,-500.0,0.00013998,2]
[352951593,1739459351598,-500.0,0.00013998,2]
[352951594,1739459351621,-500.0,0.00013998,2]
[352951595,1739459351643,-1610.94,0.00013998,2]
[352951596,1739459351664,-500.0,0.00013998,2]
[352951597,1739459351687,-500.0,0.00013998,2]
[352951598,1739459351709,-500.0,0.00013998,2]
[352951599,1739459351732,-929.84,0.00013998,2]
[352951600,1739459351754,-500.36825461,0.00013998,2]
[352951601,1739459351777,-500.0,0.00013998,2]
[352951602,1739459351800,-500.0,0.00013998,2]
[352951603,1739459351822,-520.84371153,0.00013998,2]
[352951604,1739459351844,-500.0,0.00013998,2]
[352951605,1739459351866,-500.0,0.00013998,2]
[352951606,1739459351889,-579.86,0.00013998,2]
[352951607,1739459351913,-500.0,0.00013998,2]
[352951608,1739459351954,-500.0,0.00013998,2]
[352951609,1739459351995,-500.0,0.00013998,2]
[352951610,1739459352038,-699.75,0.00013998,2]
[352951611,1739459352084,-1248.83,0.00013998,2]
[352951612,1739459352109,-1000.9,0.00013998,2]
[352951613,1739459352133,-500.0,0.00013998,2]
[352951614,1739459352156,-500.0,0.00013998,2]
[352951615,1739459352180,-500.0,0.00013998,2]
[352951616,1739459352202,-500.0,0.00013998,2]
[352951617,1739459352228,-2169.12,0.00013998,2]
[352951618,1739459352252,-500.0,0.00013998,2]
[352951619,1739459352274,-1038.12,0.00013998,2]
[352951620,1739459352296,-501.67961428,0.00013998,2]
[352951621,1739459352321,-500.0,0.00013998,2]
[352951622,1739459352343,-1649.29,0.00013998,2]
[352951623,1739459352365,-500.0,0.00013998,2]
[352951624,1739459352389,-2028.12,0.00013998,2]
[352951625,1739459352413,-503.60215071,0.00013998,2]
[352951626,1739459352437,-2084.73,0.00013998,2]
[352951627,1739459352459,-1027.96,0.00013998,2]
[352951628,1739459352484,-620.3,0.00013998,2]
[352951629,1739459352510,-1242.68,0.00013998,2]
[352951630,1739459352541,-500.0,0.00013998,2]
[352951631,1739459352567,-1093.47,0.00013998,2]
[352951632,1739459352591,-987.59,0.00013998,2]
[352951633,1739459352615,-500.0,0.00013998,2]
[352951634,1739459352643,-500.0,0.00013998,2]
[352951635,1739459352666,-917.98,0.00013998,2]
[352951636,1739459352691,-913.35,0.00013998,2]
[352951637,1739459352716,-500.0,0.00013998,2]
[352951638,1739459352742,-500.0,0.00013998,2]
[352951639,1739459352766,-513.09,0.00013998,2]
[352951640,1739459352791,-1193.21,0.00013998,2]
[352951641,1739459352822,-500.0,0.00013998,2]
[352951642,1739459352846,-500.0,0.00013998,2]
[352951643,1739459352869,-478.08234217,0.00013998,2]
[352951644,1739459352895,-2174.403919,0.00013998,2]
[352951645,1739459352920,-500.0,0.00013998,2]
[352951646,1739459352942,-500.0,0.00013998,2]
[352951647,1739459352963,-500.0,0.00013998,2]
[352951648,1739459352984,-500.0,0.00013998,2]
[352951649,1739459353005,-500.0,0.00013998,2]
[352951650,1739459353027,-500.0,0.00013998,2]
[352951651,1739459353051,-159.716313,0.00013998,2]
[352951652,1739459353073,-555.73,0.00013998,2]
[352951653,1739459353094,-509.25140828,0.00013998,2]
[352951654,1739459353324,-500.0,0.00013998,2]
[352951655,1739459353347,-155.509798,0.00013998,2]
[352951656,1739459353369,-757.94,0.00013998,2]
[352951657,1739459353392,-500.0,0.00013998,2]
[352951658,1739459353415,-500.0,0.00013998,2]
[352951659,1739459353438,-1563.35,0.00013998,2]
[352951660,1739459353460,-789.52,0.00013998,2]
[352951661,1739459353483,-500.0,0.00013998,2]
[352951662,1739459353504,-500.0,0.00013998,2]
[352951663,1739459353526,-500.0,0.00013998,2]